bitfinex-derivatives/quotes_BTCF0:USTF0_20210409
["timestamp","ask_amount","ask_price","bid_price","bid_amount"]
[1617934327281,1.0,58038.0,58028.0,5.80619327]
[1617934327682,0.10725655,58035.0,58028.0,5.91344982]
[1617934328084,0.10725655,58035.0,58031.0,0.50820296]
[1617934328384,0.10725655,58035.0,58030.0,0.2]
[1617934328385,0.10725655,58035.0,58034.0,1.11764818]
[1617934330586,0.10725655,58035.0,58034.0,1.62587786]
[1617934343005,0.10725655,58035.0,58034.0,0.50822968]
[1617934343306,0.10725655,58035.0,58034.0,4.72195483]
[1617934343706,0.10725655,58035.0,58034.0,4.81423242]
[1617934353419,0.10725655,58035.0,58034.0,1.71783242]
[1617934353718,4.75815655,58035.0,58034.0,1.71783242]
[1617934354229,4.75815655,58035.0,58034.0,1.62555483]
[1617934357421,0.10725655,58035.0,58034.0,1.62555483]
[1617934357622,0.10725655,58035.0,58034.0,4.80005483]
[1617934358223,0.10725655,58035.0,58034.0,4.95385535]
[1617934371760,0.10725655,58035.0,58034.0,1.77935535]
[1617934371983,3.52152655,58035.0,58034.0,1.77935535]
[1617934372145,4.52152655,58035.0,58034.0,1.77935535]
[1617934372646,4.52152655,58035.0,58034.0,1.62555483]
[1617934376448,3.52152655,58035.0,58034.0,1.62555483]
[1617934376647,4.52152655,58035.0,58034.0,1.62555483]
[1617934378352,4.52152655,58035.0,58034.0,1.11732515]
[1617934379352,4.52152655,58035.0,58034.0,1.62433897]
[1617934383256,1.23532655,58035.0,58034.0,1.62433897]
[1617934383855,1.23532655,58035.0,58034.0,4.90373897]
[1617934384260,1.23532655,58035.0,58034.0,5.05754676]
[1617934384456,0.23532655,58035.0,58034.0,5.05754676]
[1617934384757,0.10725655,58035.0,58034.0,5.05754676]
[1617934385859,0.10725655,58035.0,58034.0,1.77814676]
[1617934386360,3.41365655,58035.0,58034.0,1.62433897]
[1617934386860,3.41365655,58035.0,58034.0,1.68586034]
[1617934387159,3.41365655,58035.0,58034.0,1.62433897]
[1617934390864,4.41365655,58035.0,58034.0,1.62433897]
[1617934392490,4.86446033,58035.0,58034.0,1.11732515]
[1617934393765,4.86446033,58035.0,58034.0,0.67039509]
[1617934394968,1.10725655,58035.0,58034.0,0.67039509]
[1617934401572,1.10725655,58035.0,58034.0,0.30472504]
[1617934402774,1.10725655,58035.0,58034.0,0.6693209]
[1617934406375,1.10725655,58035.0,58034.0,0.30472504]
[1617934406674,1.10725655,58035.0,58034.0,0.36626145]
[1617934407276,1.10725655,58035.0,58034.0,0.30472504]
[1617934408074,1.10725655,58035.0,58034.0,0.66960118]
[1617934408576,1.10725655,58035.0,58034.0,0.30472504]
[1617934413081,1.55710873,58035.0,58034.0,0.30472504]
[1617934413281,1.75710873,58035.0,58034.0,0.30472504]
[1617934414384,0.75710873,58035.0,58034.0,0.30472504]
[1617934414686,1.75710873,58035.0,58034.0,0.30472504]
[1617934415486,1.55710873,58035.0,58034.0,0.30472504]
[1617934417088,1.75710873,58035.0,58034.0,0.30472504]
[1617934417290,0.75710873,58035.0,58033.0,0.3055237]
[1617934417587,1.75710873,58035.0,58033.0,0.2015237]
[1617934417789,0.44971528,58034.0,58028.0,0.36652175]
[1617934417990,0.2,58033.0,58028.0,0.36652175]
[1617934418192,0.10725655,58029.0,58026.0,0.36671994]
[1617934418389,0.2,58028.0,58026.0,0.36671994]
[1617934418592,0.2,58028.0,58024.0,0.36680434]
[1617934418790,1.0,58027.0,58024.0,0.36680434]
[1617934418991,1.0,58027.0,58014.0,0.59563543]
[1617934418992,0.2,58026.0,58022.0,0.36685577]
[1617934419700,0.2,58026.0,58018.0,0.44837928]
[1617934419701,0.2,58026.0,58023.0,0.36694461]
[1617934420094,0.10725655,58022.0,58021.0,0.36715539]
[1617934420594,1.10725655,58022.0,58021.0,0.36715539]
[1617934420993,1.10725655,58022.0,58020.0,0.36717506]
[1617934421395,1.10725655,58022.0,58021.0,0.36714461]
[1617934421694,0.10725655,58022.0,58021.0,0.36714461]
[1617934423597,1.10725655,58022.0,58021.0,0.36714461]
[1617934427001,1.24041655,58022.0,58021.0,0.36714461]
[1617934428602,1.24041655,58022.0,58021.0,0.42869252]
[1617934429103,1.24041655,58022.0,58021.0,0.36714461]
[1617934434913,1.29171655,58022.0,58021.0,0.36714461]
[1617934435112,1.24041655,58022.0,58021.0,0.36714461]
[1617934437816,1.10725655,58022.0,58021.0,0.36714461]
[1617934439016,1.10725655,58022.0,58021.0,0.06155089]
[1617934439516,1.10725655,58022.0,58019.0,0.36649603]
[1617934440820,1.0,58020.0,58019.0,0.36649603]
[1617934442822,1.0,58020.0,57987.0,0.2]
[1617934442823,1.4501325,58020.0,58017.0,0.06155405]
[1617934443019,1.4501325,58020.0,58019.0,3.297]
[1617934443221,4.388,58020.0,58019.0,3.297]
[1617934443622,4.99735425,58020.0,58019.0,3.297]
[1617934444823,4.99735425,58020.0,58017.0,0.36665448]
[1617934445024,1.60935425,58020.0,58017.0,0.36665448]
[1617934445425,0.45012478,58018.0,58017.0,0.36665448]
[1617934445827,0.45012478,58018.0,58016.0,0.36661703]
[1617934446128,1.45012478,58018.0,58016.0,0.36661703]
[1617934446826,1.0,58017.0,58016.0,0.36661703]
[1617934447527,1.45009071,58017.0,58016.0,0.30531354]
[1617934447726,4.08389071,58017.0,58016.0,0.30531354]
[1617934450331,4.13519071,58017.0,58016.0,0.30531354]
[1617934450631,4.08389071,58017.0,58016.0,0.30531354]
[1617934453737,3.6338,58017.0,58016.0,0.30531354]
[1617934462044,3.76206,58017.0,58016.0,0.30531354]
[1617934463546,3.76206,58017.0,58015.0,0.304181]
[1617934464047,1.0,58016.0,58015.0,0.304181]
[1617934464348,1.10725655,58016.0,58015.0,0.304181]
[1617934464646,3.2173,58015.0,58014.0,3.24336118]
[1617934465346,3.2173,58015.0,58014.0,0.30426118]
[1617934465746,3.33511,58015.0,58014.0,0.30426118]
[1617934466147,4.33511,58015.0,58014.0,0.30426118]
[1617934467349,1.11781,58015.0,58014.0,0.30426118]
[1617934467549,1.0,58015.0,58014.0,3.25866118]
[1617934468052,1.0,58015.0,58014.0,3.68533981]
[1617934469655,1.10725655,58016.0,58014.0,3.68533981]
[1617934469852,0.10725655,58016.0,58014.0,3.80706981]
[1617934470053,0.10725655,58016.0,58015.0,0.73040103]
[1617934470553,0.10725655,58016.0,58015.0,1.17617116]
[1617934472554,1.10725655,58016.0,58015.0,1.17617116]
[1617934472755,4.47865655,58016.0,58015.0,1.17617116]
[1617934473455,3.47865655,58016.0,58015.0,1.17617116]
[1617934474057,0.10725655,58016.0,58015.0,1.17617116]
[1617934474458,0.10725655,58016.0,58015.0,3.97997116]
[1617934474858,0.10725655,58016.0,58015.0,4.07228089]
[1617934478965,0.10725655,58016.0,58015.0,4.57981051]
[1617934481270,3.05815655,58016.0,58015.0,4.57981051]
[1617934482273,0.10725655,58016.0,58015.0,4.57981051]
[1617934485777,0.10725655,58016.0,58015.0,4.77981051]
[1617934488079,0.10725655,58016.0,58015.0,1.97601051]
[1617934488280,3.59525655,58016.0,58015.0,1.77601051]
[1617934488683,3.59525655,58016.0,58015.0,1.68370078]
[1617934490182,3.59525655,58016.0,58015.0,5.22100078]
[1617934490685,0.10725655,58016.0,58015.0,5.22100078]
[1617934490885,0.10725655,58016.0,58015.0,5.31330099]
[1617934492493,0.10725655,58016.0,58015.0,1.77600099]
[1617934492791,2.93955655,58016.0,58015.0,1.77600099]
[1617934493192,2.93955655,58016.0,58015.0,1.68370078]
[1617934493992,2.93955655,58016.0,58015.0,1.62215508]
[1617934495397,0.10725655,58016.0,58015.0,1.62215508]
[1617934495796,0.10725655,58016.0,58015.0,4.80265508]
[1617934496397,3.0171,58029.0,58015.0,4.80265508]
[1617934496596,0.10725655,58023.0,58016.0,0.10725655]
[1617934497198,0.44974365,58033.0,58022.0,3.78543365]
[1617934497397,0.44974365,58033.0,58022.0,3.91741365]
[1617934497599,0.44974254,58034.0,58032.0,0.30407662]
[1617934498103,0.44974254,58034.0,58033.0,0.30411054]
[1617934498398,0.4495763,58035.0,58032.0,0.30399682]
[1617934498597,0.10725655,58033.0,58032.0,0.30399682]
[1617934502400,0.10725655,58033.0,58031.0,0.30359242]
[1617934503400,0.10725655,58033.0,58032.0,0.30315646]
[1617934504000,1.10725655,58033.0,58032.0,0.30315646]
[1617934504801,1.10725655,58033.0,58031.0,0.30317938]
[1617934505402,1.10725655,58033.0,58032.0,0.30312958]
[1617934505602,0.10725655,58033.0,58032.0,0.30312958]
[1617934506904,0.10725655,58033.0,58031.0,0.30283853]
[1617934507305,1.10725655,58033.0,58030.0,0.30287844]
[1617934507504,1.0,58032.0,58030.0,0.30287844]
[1617934507904,0.10725655,58033.0,58030.0,0.30287844]
[1617934507905,1.0,58031.0,58030.0,0.30287844]
[1617934508103,3.6285,58031.0,58030.0,0.30287844]
[1617934508407,3.6285,58031.0,58027.0,0.30309356]
[1617934508905,4.07804809,58031.0,58027.0,0.30309356]
[1617934509404,4.07804809,58031.0,58026.0,2.6574]
[1617934509405,0.44957575,58028.0,58026.0,2.6574]
[1617934510004,1.0,58027.0,58026.0,2.6574]
[1617934510204,1.09827,58027.0,58026.0,2.6574]
[1617934510618,1.54785471,58027.0,58026.0,2.6574]
[1617934510805,1.65511126,58027.0,58026.0,2.6574]
[1617934513910,1.55684126,58027.0,58026.0,2.6574]
[1617934514910,0.55684126,58027.0,58026.0,2.6574]
[1617934515114,0.10725655,58027.0,58026.0,2.96048021]
[1617934515312,0.10725655,58027.0,58026.0,3.10748021]
[1617934515742,0.10725655,58027.0,58026.0,3.47099766]
[1617934519316,0.10725655,58027.0,58026.0,3.91503586]
[1617934524618,0.4788,58036.0,58026.0,3.91503586]
[1617934524917,0.10725655,58035.0,58026.0,4.42032377]
[1617934525317,0.10725655,58035.0,58034.0,0.6669232]
[1617934525818,0.10725655,58035.0,58034.0,4.0388232]
[1617934526218,0.10725655,58035.0,58034.0,4.10035429]
[1617934527722,0.5577295,58035.0,58034.0,4.10035429]
[1617934528921,0.5577295,58035.0,58034.0,0.72845429]
[1617934529322,3.7944295,58035.0,58034.0,0.72845429]
[1617934529522,3.34395655,58035.0,58034.0,0.6669232]
[1617934529822,3.34395655,58035.0,58034.0,0.72845256]
[1617934530323,3.34395655,58035.0,58034.0,0.6669232]
[1617934531227,3.34395655,58035.0,58034.0,0.72845302]
[1617934531631,3.46989655,58035.0,58034.0,0.6669232]
[1617934532031,3.92021291,58035.0,58034.0,0.6669232]
[1617934534239,3.46989655,58035.0,58034.0,0.6669232]
[1617934534438,3.34395655,58035.0,58034.0,0.6669232]
[1617934534638,3.79427083,58035.0,58034.0,0.6669232]
[1617934539447,3.92094083,58035.0,58034.0,0.6669232]
[1617934541251,3.92094083,58035.0,58034.0,0.30314691]
[1617934541855,3.92094083,58035.0,58034.0,0.66741049]
[1617934542955,3.79427083,58035.0,58034.0,0.30314691]
[1617934543655,4.79427083,58035.0,58034.0,0.30314691]
[1617934544057,4.79427083,58035.0,58034.0,0.6674442]
[1617934544461,4.79427083,58035.0,58034.0,0.30314691]
[1617934545557,4.79427083,58035.0,58034.0,0.66742432]
[1617934547861,0.55757083,58035.0,58034.0,0.66742432]
[1617934548061,0.55757083,58035.0,58034.0,3.75422432]
[1617934548762,0.92939764,58036.0,58034.0,4.35288104]
[1617934548961,0.92939764,58036.0,58034.0,1.37333759]
[1617934549162,0.4788,58036.0,58035.0,1.26552661]
[1617934549460,0.4788,58036.0,58035.0,3.93752661]
[1617934549666,0.4788,58036.0,58035.0,3.84523623]
[1617934550164,0.4788,58036.0,58035.0,3.93752176]
[1617934550467,0.4788,58036.0,58035.0,4.44237631]
[1617934552669,0.4788,58036.0,58035.0,3.93752176]
[1617934553570,0.38788683,58036.0,58035.0,4.13752176]
[1617934554572,0.38788683,58036.0,58035.0,4.64143839]
[1617934556070,0.38788683,58036.0,58035.0,4.44143839]
[1617934556271,0.38788683,58036.0,58035.0,1.76943839]
[1617934557173,0.38788683,58036.0,58035.0,1.67715286]
[1617934557575,0.38788683,58036.0,58035.0,1.87715286]
[1617934558373,0.38788683,58036.0,58035.0,2.87715286]
[1617934558775,0.38788683,58036.0,58035.0,1.87715286]
[1617934558976,0.3018251,58036.0,58035.0,1.87715286]
[1617934559176,0.3018251,58036.0,58035.0,2.87715286]
[1617934559376,0.1978251,58036.0,58035.0,2.87715286]
[1617934566383,0.1978251,58036.0,58035.0,1.87715286]
[1617934566584,0.1978251,58036.0,58035.0,1.67715286]
[1617934566785,0.1978251,58036.0,58035.0,2.67715286]
[1617934568389,0.1978251,58036.0,58035.0,2.17323623]
[1617934569002,0.1978251,58036.0,58035.0,1.17323623]
[1617934570113,2.8071251,58036.0,58035.0,1.17323623]
[1617934571302,2.8071251,58036.0,58035.0,0.72855251]
[1617934571692,0.1978251,58036.0,58035.0,0.72855251]
[1617934572094,0.1978251,58036.0,58035.0,1.17154652]
[1617934572793,0.1978251,58036.0,58035.0,0.72855251]
[1617934574692,0.1978251,58036.0,58035.0,1.17177531]
[1617934577196,0.1978251,58036.0,58035.0,1.61325106]
[1617934577599,0.1978251,58036.0,58035.0,1.17176528]
[1617934578599,0.1978251,58036.0,58035.0,1.67474402]
[1617934578799,0.1978251,58036.0,58035.0,2.67474402]
[1617934580902,0.1117649,58036.0,58035.0,2.67474402]
[1617934584214,0.1117649,58036.0,58035.0,2.76867402]
[1617934585610,0.1117649,58036.0,58035.0,2.67474402]
[1617934586011,0.1117649,58036.0,58035.0,1.67474402]
[1617934591416,0.1117649,58036.0,58035.0,1.79632402]
[1617934595724,0.1117649,58036.0,58035.0,1.67474402]
[1617934610541,0.1117649,58036.0,58035.0,1.80003402]
[1617934611243,0.1117649,58036.0,58035.0,2.36737152]
[1617934612144,0.1117649,58036.0,58035.0,1.80003402]
[1617934613353,0.1117649,58036.0,58035.0,2.24202296]
[1617934614150,0.1117649,58036.0,58035.0,1.67474402]
[1617934614350,0.1117649,58036.0,58035.0,1.78238402]
[1617934617560,0.1117649,58036.0,58035.0,2.34959195]
[1617934622667,0.1117649,58036.0,58035.0,3.34959195]
[1617934622864,2.9708,58050.0,58035.0,3.81959195]
[1617934623266,2.9708,58050.0,58049.0,0.10725655]
[1617934623568,2.9708,58050.0,58049.0,1.36385095]
[1617934623768,2.9708,58050.0,58049.0,1.8701497]
[1617934624167,2.9708,58050.0,58049.0,1.42535318]
[1617934625469,2.9708,58050.0,58049.0,1.9314634]
[1617934627669,2.9708,58050.0,58049.0,1.42535318]
[1617934628469,2.9708,58050.0,58049.0,1.9315159]
[1617934631773,2.88473989,58050.0,58049.0,1.9315159]
[1617934633873,2.88473989,58050.0,58049.0,1.42535318]
[1617934634277,2.88473989,58050.0,58049.0,1.93194573]
[1617934652293,2.88473989,58050.0,58049.0,1.78943573]
[1617934654196,0.11034,58051.0,58049.0,1.78943573]
[1617934654603,0.11034,58051.0,58050.0,1.67910947]
[1617934656492,0.10725655,58055.0,58050.0,1.67910947]
[1617934656691,3.5975,58057.0,58050.0,1.67910947]
[1617934657292,0.44962063,58066.0,58050.0,1.67910947]
[1617934657494,0.44962063,58066.0,58056.0,1.1116627]
[1617934657692,0.55687718,58066.0,58059.0,0.10725655]
[1617934657895,0.10725655,58066.0,58065.0,0.30317637]
[1617934658997,1.10725655,58066.0,58065.0,0.30317637]
[1617934660597,0.10725655,58066.0,58065.0,0.30317637]
[1617934663000,0.55687297,58066.0,58065.0,0.30317637]
[1617934663200,0.67233297,58066.0,58065.0,0.30317637]
[1617934664202,1.67233297,58066.0,58065.0,0.30317637]
[1617934665604,0.67233297,58066.0,58065.0,0.30317637]
[1617934665805,1.67233297,58066.0,58065.0,0.30317637]
[1617934668609,1.67233297,58066.0,58065.0,0.66781291]
[1617934671613,1.67233297,58066.0,58065.0,0.30317637]
[1617934673414,0.67233297,58066.0,58065.0,0.30317637]
[1617934673615,1.67233297,58066.0,58065.0,0.30317637]
[1617934673820,1.67233297,58066.0,58065.0,0.66747816]
[1617934674014,5.03453297,58066.0,58065.0,0.66747816]
[1617934674217,5.03453297,58066.0,58065.0,0.7289742]
[1617934674821,5.18346265,58066.0,58065.0,0.30317637]
[1617934675216,5.03453297,58066.0,58065.0,0.30317637]
[1617934678520,5.03453297,58066.0,58065.0,0.66757361]
[1617934680624,4.03453297,58066.0,58065.0,0.66757361]
[1617934681622,5.03453297,58066.0,58065.0,0.66757361]
[1617934688029,4.03453297,58066.0,58065.0,0.66757361]
[1617934688633,4.03453297,58066.0,58065.0,0.79507361]
[1617934688832,0.67233297,58066.0,58065.0,0.79507361]
[1617934689032,0.55687297,58066.0,58065.0,3.29467361]
[1617934689433,0.55687297,58066.0,58065.0,3.35616788]
[1617934694140,0.55687297,58066.0,58065.0,3.8022472]
[1617934695640,0.55687297,58066.0,58065.0,3.35616788]
[1617934696242,0.55687297,58066.0,58065.0,3.80227606]
[1617934696441,4.49107297,58066.0,58065.0,1.30267606]
[1617934696641,4.49107297,58066.0,58065.0,1.17517606]
[1617934697041,4.63686059,58066.0,58065.0,0.66757361]
[1617934699544,1.70266059,58066.0,58065.0,0.66757361]
[1617934699946,1.70266059,58066.0,58065.0,3.28487361]
[1617934700146,1.55687297,58066.0,58065.0,3.28487361]
[1617934700546,1.55687297,58066.0,58065.0,3.34636716]
[1617934701351,1.55687297,58066.0,58065.0,3.79198528]
[1617934702651,0.55687297,58066.0,58065.0,3.79198528]
[1617934703251,0.55687297,58066.0,58065.0,1.17468528]
[1617934703954,0.55687297,58066.0,58065.0,1.11319173]
[1617934704251,0.55687297,58066.0,58065.0,3.91429173]
[1617934704452,0.55687297,58066.0,58065.0,3.97578382]
[1617934704852,0.55687297,58066.0,58065.0,4.06802174]
[1617934709858,0.55687297,58066.0,58065.0,1.26692174]
[1617934710059,3.39637297,58066.0,58065.0,1.26692174]
[1617934710459,3.39637297,58066.0,58065.0,1.11319173]
[1617934710760,3.54317284,58066.0,58065.0,1.2669175]
[1617934711559,0.70367284,58066.0,58065.0,1.2669175]
[1617934711761,0.70367284,58066.0,58065.0,4.8800175]
[1617934712260,0.55687297,58066.0,58065.0,4.8800175]
[1617934715064,0.55687297,58066.0,58065.0,1.2669175]
[1617934715666,4.24357297,58066.0,58065.0,1.11319173]
[1617934716066,4.39037563,58066.0,58065.0,1.11319173]
[1617934716265,0.70367563,58066.0,58065.0,1.11319173]
[1617934716465,0.70367563,58066.0,58065.0,4.63619173]
[1617934717066,0.55687297,58066.0,58065.0,4.78991785]
[1617934718367,0.55687297,58066.0,58065.0,1.26691785]
[1617934718668,3.31817297,58066.0,58065.0,1.26691785]
[1617934718967,3.31817297,58066.0,58065.0,1.11319173]
[1617934719267,3.4649509,58066.0,58065.0,1.174682]
[1617934719469,0.7036509,58066.0,58065.0,1.174682]
[1617934719767,0.7036509,58066.0,58065.0,4.73639173]
[1617934720067,0.55687297,58066.0,58065.0,4.79788149]
[1617934720568,0.55687297,58066.0,58065.0,4.89011651]
[1617934724172,0.55687297,58066.0,58065.0,1.26691651]
[1617934724372,4.04507297,58066.0,58065.0,1.26691651]
[1617934724675,4.04507297,58066.0,58065.0,1.11319173]
[1617934725073,4.19223837,58066.0,58065.0,1.11319173]
[1617934726978,5.33145837,58066.0,58065.0,1.11319173]
[1617934727282,4.33145837,58066.0,58065.0,1.11319173]
[1617934728280,5.33145837,58066.0,58065.0,1.11319173]
[1617934728880,4.33145837,58066.0,58065.0,1.11319173]
[1617934729080,4.19223837,58066.0,58065.0,1.11319173]
[1617934729281,5.19223837,58066.0,58065.0,1.11319173]
[1617934731984,5.08498182,58066.0,58065.0,1.11319173]
[1617934732586,5.19223837,58066.0,58065.0,1.11319173]
[1617934745406,1.70403837,58066.0,58065.0,1.11319173]
[1617934745909,0.70403837,58066.0,58065.0,4.36489173]
[1617934746114,0.55687297,58066.0,58065.0,4.36489173]
[1617934746508,0.55687297,58066.0,58065.0,4.51861647]
[1617934746909,0.44961642,58066.0,58065.0,4.51861647]
[1617934753718,0.45079236,58068.0,58065.0,4.51861647]
[1617934754119,0.45079236,58068.0,58067.0,1.11487305]
[1617934754418,0.45079236,58068.0,58067.0,1.26897305]
[1617934755020,0.45079236,58068.0,58067.0,1.33046166]
[1617934761025,0.45079236,58068.0,58067.0,1.17636166]
[1617934761624,0.45079236,58068.0,58067.0,1.11487305]
[1617934765927,0.45079236,58068.0,58067.0,1.26111305]
[1617934766629,0.45079236,58068.0,58067.0,1.32260112]
[1617934767933,0.45069943,58069.0,58067.0,1.32260112]
[1617934768736,0.45069943,58069.0,58068.0,1.18175969]
[1617934772536,0.45069943,58069.0,58068.0,4.57515969]
[1617934773344,0.474,58073.0,58068.0,4.57515969]
[1617934773345,0.474,58073.0,58068.0,5.37604113]
[1617934773739,0.474,58073.0,58072.0,1.62747338]
[1617934774457,0.471,58073.0,58072.0,1.62747338]
[1617934774666,0.471,58073.0,58072.0,1.82747338]
[1617934774849,0.471,58073.0,58072.0,1.93472993]
[1617934775242,0.471,58073.0,58072.0,1.99620716]
[1617934775853,0.471,58073.0,58072.0,1.79620716]
[1617934776045,0.471,58073.0,58072.0,1.99620716]
[1617934776461,0.471,58073.0,58072.0,1.79620716]
[1617934776843,0.471,58073.0,58072.0,2.79620716]
[1617934777143,0.471,58073.0,58072.0,3.83502895]
[1617934777342,0.471,58073.0,58072.0,3.63502895]
[1617934778244,0.471,58073.0,58072.0,3.83502895]
[1617934778945,0.471,58073.0,58072.0,3.92724146]
[1617934779346,0.471,58073.0,58072.0,3.83502895]
[1617934779747,0.471,58073.0,58072.0,3.92724142]
[1617934781548,0.45023712,58090.0,58072.0,2.92724142]
[1617934781949,0.45023712,58090.0,58076.0,1.2]
[1617934782149,0.45020657,58094.0,58076.0,3.39053958]
[1617934782348,0.45020657,58094.0,58076.0,3.66053958]
[1617934782549,1.0,58113.0,58076.0,3.66053958]
[1617934782550,0.45020157,58095.0,58076.0,3.66053958]
[1617934782949,0.45019721,58096.0,58076.0,3.72200883]
[1617934783648,0.45018872,58097.0,58076.0,3.72200883]
[1617934784548,0.44806967,58106.0,58076.0,3.15409116]
[1617934784948,0.1536,58077.0,58076.0,3.24629251]
[1617934785149,0.15257554,58077.0,58076.0,3.15409116]
[1617934785548,0.15257554,58077.0,58076.0,3.24629291]
[1617934785948,0.15257554,58077.0,58076.0,3.15409116]
[1617934786154,0.15097702,58077.0,58076.0,3.15409116]
[1617934786349,0.15097702,58077.0,58076.0,3.24629273]
[1617934786754,0.15097702,58077.0,58076.0,3.15409116]
[1617934789353,0.15097702,58077.0,58076.0,7.79839345]
[1617934789553,0.15097702,58077.0,58076.0,3.24629345]
[1617934789754,0.15097702,58077.0,58076.0,3.3897189]
[1617934790155,0.15097702,58077.0,58076.0,3.15409116]
[1617934790355,0.15097702,58077.0,58076.0,2.15409116]
[1617934790656,0.15097702,58077.0,58076.0,3.15409116]
[1617934795165,0.15097702,58077.0,58076.0,2.81061514]
[1617934795362,0.15097702,58077.0,58076.0,3.81061514]
[1617934795564,0.15097702,58077.0,58076.0,3.15409116]
[1617934796467,0.14995257,58077.0,58076.0,3.15409116]
[1617934800766,0.05913354,58077.0,58076.0,3.15409116]
[1617934804175,0.05913354,58077.0,58076.0,3.24629148]
[1617934804573,0.05913354,58077.0,58076.0,3.15409116]
[1617934804974,0.05913354,58077.0,58076.0,3.2462911]
[1617934805375,0.05913354,58077.0,58076.0,3.15409116]
[1617934805576,0.05913354,58077.0,58076.0,3.24629127]
[1617934805975,0.05913354,58077.0,58076.0,3.15409116]
[1617934810482,0.05810911,58077.0,58076.0,3.15409116]
[1617934813985,0.05810911,58077.0,58076.0,2.95409116]
[1617934814687,0.15002,58097.0,58076.0,2.95409116]
[1617934814986,0.15002,58097.0,58096.0,0.10725655]
[1617934815686,0.15002,58097.0,58096.0,0.40993136]
[1617934815885,0.15002,58097.0,58096.0,0.35182225]
[1617934816286,0.15002,58097.0,58096.0,0.04914744]
[1617934817086,0.15002,58097.0,58096.0,0.35213576]
[1617934817486,3.34822,58097.0,58096.0,0.30298832]
[1617934817717,4.34822,58097.0,58096.0,0.30298832]
[1617934817991,4.34822,58097.0,58093.0,0.30316721]
[1617934818500,4.34822,58097.0,58089.0,0.30338437]
[1617934818687,1.0,58094.0,58089.0,0.30338437]
[1617934818987,0.10725655,58091.0,58089.0,0.30338437]
[1617934819487,0.10725655,58091.0,58084.0,0.10725655]
[1617934819488,0.10725655,58091.0,58090.0,0.30344135]
[1617934820593,0.10725655,58091.0,58089.0,0.30350033]
[1617934822591,0.10725655,58091.0,58090.0,0.30402084]
[1617934822993,0.10725655,58091.0,58090.0,3.28012084]
[1617934823392,0.10725655,58091.0,58090.0,3.70612762]
[1617934824191,0.10725655,58091.0,58090.0,0.73002762]
[1617934824690,0.10725655,58091.0,58090.0,0.66855845]
[1617934825095,0.10725655,58091.0,58090.0,0.73002747]
[1617934833208,0.10725655,58091.0,58090.0,1.68670023]
[1617934834209,0.10725655,58091.0,58090.0,1.62523121]
[1617934834709,0.10725655,58091.0,58090.0,5.25453121]
[1617934835810,0.10725655,58091.0,58090.0,5.40820193]
[1617934837913,0.10725655,58091.0,58090.0,3.6293]
[1617934838113,1.0,58102.0,58090.0,3.6293]
[1617934838315,0.45026763,58098.0,58090.0,5.2580791]
[1617934838918,0.45026763,58098.0,58097.0,1.11978094]
[1617934839216,0.55752418,58098.0,58097.0,1.11978094]
[1617934840519,0.55752418,58098.0,58097.0,0.67186856]
[1617934844622,0.66386418,58098.0,58097.0,0.67186856]
[1617934850533,0.55752418,58098.0,58097.0,0.67186856]
[1617934851632,0.55752418,58098.0,58097.0,1.12000572]
[1617934851833,0.68565418,58098.0,58097.0,1.12000572]
[1617934852131,0.68565418,58098.0,58097.0,0.67186856]
[1617934855837,0.68565418,58098.0,58097.0,0.73333819]
[1617934856339,0.68565418,58098.0,58097.0,0.67186856]
[1617934858343,0.55752418,58098.0,58097.0,0.67186856]
[1617934862049,0.55752418,58098.0,58097.0,1.1201551]
[1617934862451,0.10725655,58098.0,58097.0,1.1201551]
[1617934863454,0.45006602,58099.0,58097.0,1.1201551]
[1617934863652,0.45006602,58099.0,58097.0,3.6635551]
[1617934863852,0.45006602,58099.0,58097.0,3.72502251]
[1617934864253,0.45004566,58102.0,58098.0,1.27378593]
[1617934864654,0.45003545,58103.0,58101.0,1.11972342]
[1617934865155,0.45003545,58103.0,58098.0,0.15366462]
[1617934865156,0.45002401,58105.0,58102.0,1.11947843]
[1617934865353,0.45002401,58105.0,58102.0,1.22673498]
[1617934865556,0.45007072,58104.0,58102.0,1.28819769]
[1617934865956,0.94441445,58106.0,58103.0,1.18056647]
[1617934866458,0.94441445,58106.0,58105.0,0.67137403]
[1617934867858,0.4945,58106.0,58105.0,0.67137403]
[1617934868760,3.417,58106.0,58105.0,3.45987403]
[1617934868960,3.417,58106.0,58105.0,3.90738136]
[1617934869461,3.8669057,58106.0,58105.0,3.52133557]
[1617934869761,3.417,58106.0,58105.0,3.52133557]
[1617934870861,3.417,58106.0,58105.0,3.96872125]
[1617934873859,3.417,58106.0,58105.0,3.52133557]
[1617934876063,0.4945,58106.0,58105.0,0.73283557]
[1617934876661,0.4945,58106.0,58105.0,1.18016931]
[1617934876862,0.4945,58106.0,58105.0,1.11870777]
[1617934893084,0.4945,58106.0,58102.0,1.10725655]
[1617934893284,0.4945,58106.0,58105.0,1.11543484]
[1617934893483,0.4945,58106.0,58105.0,3.81573484]
[1617934894187,0.4945,58106.0,58105.0,3.96937822]
[1617934904708,0.4945,58106.0,58105.0,1.26907822]
[1617934905011,3.15394,58106.0,58105.0,1.26907822]
[1617934905206,3.15394,58106.0,58105.0,1.11543484]
[1617934905608,0.61254,58106.0,58105.0,1.11543484]
[1617934905808,0.61254,58106.0,58105.0,4.62333484]
[1617934906011,0.61254,58106.0,58105.0,0.6692609]
[1617934906310,3.68114,58106.0,58105.0,0.6692609]
[1617934907512,3.78839655,58106.0,58105.0,0.6692609]
[1617934908914,0.71979655,58106.0,58105.0,0.6692609]
[1617934909114,3.22949655,58106.0,58105.0,3.7837609]
[1617934909617,0.71979655,58106.0,58105.0,3.84522279]
[1617934910017,1.05207794,58106.0,58105.0,3.84522279]
[1617934910216,1.05207794,58106.0,58105.0,4.292627]
[1617934910918,0.60175655,58106.0,58105.0,4.292627]
[1617934913020,1.05206865,58106.0,58105.0,4.292627]
[1617934913821,0.60175655,58106.0,58105.0,4.292627]
[1617934914720,0.60175655,58106.0,58105.0,4.419547]
[1617934922128,0.4945,58106.0,58105.0,4.419547]
[1617934922430,0.4945,58106.0,58105.0,4.92748442]
[1617934922834,0.4945,58106.0,58105.0,1.81298442]
[1617934923236,3.2306,58106.0,58105.0,1.68606442]
[1617934923735,3.2306,58106.0,58105.0,1.62460253]
[1617934923934,0.4945,58106.0,58105.0,1.62460253]
[1617934924136,0.4945,58106.0,58105.0,4.49446511]
[1617934924538,0.4945,58106.0,58105.0,5.15647645]
[1617934925058,0.4945,58106.0,58105.0,5.78698978]
[1617934925638,0.4945,58106.0,58105.0,6.29529476]
[1617934940752,0.34604407,58115.0,58105.0,6.29529476]
[1617934940953,0.34604407,58115.0,58114.0,1.0]
[1617934941355,0.51139735,58123.0,58114.0,4.41663899]
[1617934941754,0.5113939,58122.0,58117.0,1.10725655]
[1617934941953,0.5113939,58122.0,58117.0,1.25107655]
[1617934942255,0.51138992,58123.0,58121.0,0.30493884]
[1617934942655,0.51138992,58123.0,58122.0,0.30492397]